[Event "*** Titled Tuesday Blitz"]
[Site "Chess.com"]
[Date "2020.10.27"]
[Round "2"]
[White "jacky72"]
[Black "Mazetovic"]
[Result "1-0"]
[WhiteElo "2526"]
[BlackElo "2750"]
[TimeControl "180+1"]
[EndTime "10:20:35 PDT"]
[Termination "jacky72 won by resignation"]

1. d4 {[%clk 0:03:00.9]} 1... Nf6 {[%clk 0:02:59.5]} 2. c4 {[%clk 0:03:00.5]}
2... g6 {[%clk 0:02:59.4]} 3. Nc3 {[%clk 0:03:00.2]} 3... Bg7 {[%clk 0:02:59.5]}
4. e4 {[%clk 0:03:00.2]} 4... O-O {[%clk 0:02:59.6]} 5. Be2 {[%clk 0:03:00.8]}
5... d6 {[%clk 0:03:00]} 6. Bg5 {[%clk 0:03:00.8]} 6... Nbd7 {[%clk 0:02:59.2]}
7. Qd2 {[%clk 0:03:00.6]} 7... e5 {[%clk 0:02:58.8]} 8. d5 {[%clk 0:03:00.9]}
8... a5 {[%clk 0:02:53.6]} 9. f3 {[%clk 0:02:59.7]} 9... h6 {[%clk 0:02:49.6]}
10. Be3 {[%clk 0:02:58.2]} 10... Nc5 {[%clk 0:02:41.2]} 11. g4 {[%clk
0:02:58.5]} 11... Kh7 {[%clk 0:02:33.1]} 12. h4 {[%clk 0:02:58.1]} 12... Ng8
{[%clk 0:02:31.6]} 13. Nh3 {[%clk 0:02:58.1]} 13... b6 {[%clk 0:02:22.2]} 14. h5
{[%clk 0:02:47.3]} 14... g5 {[%clk 0:02:22.2]} 15. O-O {[%clk 0:02:44.2]} 15...
Bf6 {[%clk 0:02:12.9]} 16. b3 {[%clk 0:02:43.6]} 16... Ne7 {[%clk 0:02:11.6]}
17. Rfb1 {[%clk 0:02:42.1]} 17... Bd7 {[%clk 0:02:09.3]} 18. a3 {[%clk
0:02:41.4]} 18... a4 {[%clk 0:02:09.3]} 19. Bxc5 {[%clk 0:02:33.2]} 19... dxc5
{[%clk 0:01:56.6]} 20. bxa4 {[%clk 0:02:18.4]} 20... Bxa4 {[%clk 0:01:53.1]} 21.
Nxa4 {[%clk 0:02:18.9]} 21... Rxa4 {[%clk 0:01:52.3]} 22. Qc3 {[%clk 0:02:17.7]}
22... Nc8 {[%clk 0:01:50.3]} 23. Bd1 {[%clk 0:02:17.6]} 23... Ra5 {[%clk
0:01:50.2]} 24. a4 {[%clk 0:02:16.2]} 24... Nd6 {[%clk 0:01:50]} 25. Nf2 {[%clk
0:02:16.8]} 25... Qd7 {[%clk 0:01:46.7]} 26. Ra2 {[%clk 0:02:13.4]} 26... Rfa8
{[%clk 0:01:46.1]} 27. Nd3 {[%clk 0:02:11.9]} 27... Qe7 {[%clk 0:01:38.9]} 28.
Bc2 {[%clk 0:02:12.4]} 28... Kg8 {[%clk 0:01:36.9]} 29. Raa1 {[%clk 0:02:08.1]}
29... Qd7 {[%clk 0:01:35.6]} 30. Nf2 {[%clk 0:02:00.5]} 30... Bg7 {[%clk
0:01:33.4]} 31. Kg2 {[%clk 0:02:00.3]} 31... Kf8 {[%clk 0:01:28.6]} 32. Kh3
{[%clk 0:02:00.2]} 32... Ke7 {[%clk 0:01:28.8]} 33. Nd3 {[%clk 0:02:00.6]} 33...
Kf8 {[%clk 0:01:23.7]} 34. Ra3 {[%clk 0:01:56.9]} 34... Qe7 {[%clk 0:01:23.2]}
35. Raa1 {[%clk 0:01:55.5]} 35... Qe8 {[%clk 0:01:17.7]} 36. Kg2 {[%clk
0:01:51.4]} 36... Bf6 {[%clk 0:01:17.6]} 37. Kh3 {[%clk 0:01:51.4]} 37... Kg7
{[%clk 0:01:17.4]} 38. Kg2 {[%clk 0:01:51.5]} 38... Nb7 {[%clk 0:01:05.3]} 39.
Kh3 {[%clk 0:01:46.5]} 39... Rc8 {[%clk 0:01:00.1]} 40. Kg2 {[%clk 0:01:44.9]}
40... Be7 {[%clk 0:00:59.8]} 41. Kh3 {[%clk 0:01:34.6]} 41... Bd6 {[%clk
0:00:59.6]} 42. Kg2 {[%clk 0:01:34.9]} 42... Qd7 {[%clk 0:00:59.3]} 43. Nxe5
{[%clk 0:01:32]} 43... Bxe5 {[%clk 0:00:56]} 44. Qxe5+ {[%clk 0:01:30.3]} 44...
f6 {[%clk 0:00:56.2]} 45. Qc3 {[%clk 0:01:26.5]} 45... Qe7 {[%clk 0:00:55.4]}
46. Re1 {[%clk 0:01:24.6]} 46... Qe5 {[%clk 0:00:55.3]} 47. Qxe5 {[%clk
0:01:20.8]} 47... fxe5 {[%clk 0:00:55.1]} 48. Bb3 {[%clk 0:01:18.3]} 48... Nd6
{[%clk 0:00:54.5]} 49. Kf2 {[%clk 0:01:17.8]} 49... Rca8 {[%clk 0:00:54.6]} 50.
Rac1 {[%clk 0:01:16.5]} 50... Kf6 {[%clk 0:00:54.6]} 51. Rc2 {[%clk 0:01:16.3]}
51... Ke7 {[%clk 0:00:54.9]} 52. Rec1 {[%clk 0:01:16.8]} 52... Kd7 {[%clk
0:00:55.2]} 53. Ke2 {[%clk 0:01:17.3]} 53... Rf8 {[%clk 0:00:55.7]} 54. Ke3
{[%clk 0:01:16.3]} 54... Kc8 {[%clk 0:00:55.7]} 55. Rc3 {[%clk 0:01:16.5]} 55...
Kb7 {[%clk 0:00:56]} 56. Ke2 {[%clk 0:01:16.7]} 56... Raa8 {[%clk 0:00:56.6]}
57. Ke3 {[%clk 0:01:16.6]} 57... Rf4 {[%clk 0:00:57.2]} 58. Ke2 {[%clk 0:01:16]}
58... Ka6 {[%clk 0:00:57.4]} 59. Bc2 {[%clk 0:01:11]} 59... Ka5 {[%clk
0:00:57.3]} 60. Rb1 {[%clk 0:01:11.2]} 60... Raf8 {[%clk 0:00:54.5]} 61. Rb2
{[%clk 0:01:10.5]} 61... Ra8 {[%clk 0:00:53.4]} 62. Rb1 {[%clk 0:01:10.5]} 62...
Rff8 {[%clk 0:00:51.4]} 63. Rb2 {[%clk 0:01:10.4]} 63... Ka6 {[%clk 0:00:49.2]}
64. Rb1 {[%clk 0:01:10.1]} 64... Kb7 {[%clk 0:00:49.3]} 65. Rb2 {[%clk
0:01:09.8]} 65... Ra5 {[%clk 0:00:49.4]} 66. Rb1 {[%clk 0:01:08.9]} 66... Rfa8
{[%clk 0:00:50]} 67. Rb2 {[%clk 0:01:06.4]} 67... Kc8 {[%clk 0:00:49.6]} 68. Kd3
{[%clk 0:01:06.3]} 68... Kb7 {[%clk 0:00:42]} 69. Bd1 {[%clk 0:01:06.2]} 69...
c6 {[%clk 0:00:42.4]} 70. dxc6+ {[%clk 0:01:02.3]} 70... Kxc6 {[%clk 0:00:42.4]}
71. Ke2 {[%clk 0:01:01.7]} 71... Nf7 {[%clk 0:00:38]} 72. Rd2 {[%clk 0:01:01.5]}
72... Rd8 {[%clk 0:00:35.6]} 73. Rcd3 {[%clk 0:00:57.1]} 73... Rd4 {[%clk
0:00:35.5]} 74. Bb3 {[%clk 0:00:55.3]} 74... Nd8 {[%clk 0:00:35.1]} 75. Ke3
{[%clk 0:00:54.5]} 75... Ne6 {[%clk 0:00:35]} 76. Rxd4 {[%clk 0:00:54.3]} 76...
exd4+ {[%clk 0:00:34.8]} 77. Kd3 {[%clk 0:00:50.3]} 77... Nf4+ {[%clk
0:00:33.8]} 78. Kc2 {[%clk 0:00:51.2]} 78... Kd6 {[%clk 0:00:34.2]} 79. Rd1
{[%clk 0:00:50.6]} 79... Ke5 {[%clk 0:00:34.6]} 80. Kd2 {[%clk 0:00:48.2]} 80...
Ne6 {[%clk 0:00:33.9]} 81. Bc2 {[%clk 0:00:47.9]} 81... Kf4 {[%clk 0:00:29.9]}
82. Rb1 {[%clk 0:00:48.3]} 82... Ra6 {[%clk 0:00:29.3]} 83. Bd1 {[%clk
0:00:48.3]} 83... Kg3 {[%clk 0:00:28.2]} 84. Rb3 {[%clk 0:00:46.8]} 84... Nf4
{[%clk 0:00:27.8]} 85. e5 {[%clk 0:00:44.4]} 85... Rxa4 {[%clk 0:00:27]} 86.
Rxb6 {[%clk 0:00:44.3]} 86... Ra2+ {[%clk 0:00:27.2]} 87. Kc1 {[%clk 0:00:43.8]}
87... Ra1+ {[%clk 0:00:23.1]} 88. Kd2 {[%clk 0:00:43.4]} 88... Ra7 {[%clk
0:00:20.2]} 89. Rxh6 {[%clk 0:00:42.2]} 89... Re7 {[%clk 0:00:19.5]} 90. Rc6
{[%clk 0:00:38.1]} 90... Rxe5 {[%clk 0:00:19.6]} 91. h6 {[%clk 0:00:38.7]} 91...
Re7 {[%clk 0:00:14.4]} 92. Rxc5 {[%clk 0:00:37.7]} 92... Ra7 {[%clk 0:00:12]}
93. Rxg5 {[%clk 0:00:36]} 93... Ra2+ {[%clk 0:00:12.1]} 94. Kc1 {[%clk
0:00:36.5]} 94... Nd3+ {[%clk 0:00:11.4]} 95. Kb1 {[%clk 0:00:36.7]} 95... Rb2+
{[%clk 0:00:11.9]} 96. Ka1 {[%clk 0:00:37]} 96... Rd2 {[%clk 0:00:11]} 97. h7
{[%clk 0:00:34.5]} 97... Rxd1+ {[%clk 0:00:11.6]} 98. Ka2 {[%clk 0:00:34.6]}
98... Rd2+ {[%clk 0:00:10.8]} 99. Ka3 {[%clk 0:00:34.2]} 99... Nf4 {[%clk
0:00:10.7]} 100. h8=Q {[%clk 0:00:31.8]} 100... d3 {[%clk 0:00:11.6]} 101. Qc3
{[%clk 0:00:26]} 101... Re2 {[%clk 0:00:11.2]} 102. Rd5 {[%clk 0:00:23.9]}
102... Re3 {[%clk 0:00:11.5]} 103. Ka4 {[%clk 0:00:21.7]} 103... Rxf3 {[%clk
0:00:11.5]} 104. Rd4 {[%clk 0:00:20.3]} 104... Kxg4 {[%clk 0:00:11.7]} 105. c5
{[%clk 0:00:19.9]} 105... Kf5 {[%clk 0:00:10.8]} 106. c6 {[%clk 0:00:19.7]}
106... Ne2 {[%clk 0:00:11]} 107. Qc5+ {[%clk 0:00:18.6]} 107... Ke6 {[%clk
0:00:11.3]} 108. Rd6+ {[%clk 0:00:18.8]} 1-0

[Event "*** Titled Tuesday Blitz"]
[Site "Chess.com"]
[Date "2020.10.27"]
[Round "3"]
[White "GjakanTati"]
[Black "googlegoom"]
[Result "1-0"]
[WhiteElo "2606"]
[BlackElo "2394"]
[TimeControl "180+1"]
[EndTime "10:22:23 PDT"]
[Termination "GjakanTati won by resignation"]

1. e4 {[%clk 0:02:57]} 1... c5 {[%clk 0:02:59.8]} 2. Nf3 {[%clk 0:02:56.8]} 2...
Nc6 {[%clk 0:03:00.2]} 3. Bb5 {[%clk 0:02:56]} 3... Qb6 {[%clk 0:03:00.2]} 4.
Bxc6 {[%clk 0:02:53.4]} 4... bxc6 {[%clk 0:02:59.8]} 5. O-O {[%clk 0:02:52.4]}
5... g6 {[%clk 0:03:00.3]} 6. d3 {[%clk 0:02:45]} 6... Bg7 {[%clk 0:03:00.3]} 7.
Nc3 {[%clk 0:02:41.4]} 7... e5 {[%clk 0:03:00.2]} 8. Nd2 {[%clk 0:02:39.7]} 8...
d6 {[%clk 0:03:00.1]} 9. Nc4 {[%clk 0:02:39.6]} 9... Qc7 {[%clk 0:03:00.4]} 10.
f4 {[%clk 0:02:40.2]} 10... exf4 {[%clk 0:02:59.6]} 11. Bxf4 {[%clk 0:02:39.7]}
11... Bf8 {[%clk 0:02:42.2]} 12. e5 {[%clk 0:02:35.7]} 12... d5 {[%clk
0:02:37.8]} 13. e6 {[%clk 0:02:35.9]} 1-0

[Event "*** Titled Tuesday Blitz"]
[Site "Chess.com"]
[Date "2020.10.27"]
[Round "3"]
[White "gagtemp"]
[Black "indfraeng"]
[Result "0-1"]
[WhiteElo "1957"]
[BlackElo "2352"]
[TimeControl "180+1"]
[EndTime "10:23:12 PDT"]
[Termination "indfraeng won by resignation"]

1. e4 {[%clk 0:03:00.9]} 1... e5 {[%clk 0:02:59.8]} 2. Nf3 {[%clk 0:02:57.7]}
2... Nc6 {[%clk 0:02:59.8]} 3. Bc4 {[%clk 0:02:54.2]} 3... Bc5 {[%clk
0:02:59.1]} 4. O-O {[%clk 0:02:50.4]} 4... Nf6 {[%clk 0:02:56.6]} 5. d3 {[%clk
0:02:49.5]} 5... h6 {[%clk 0:02:56.1]} 6. a4 {[%clk 0:02:48.7]} 6... d6 {[%clk
0:02:52.6]} 7. Re1 {[%clk 0:02:48.3]} 7... a5 {[%clk 0:02:52.6]} 8. c3 {[%clk
0:02:46.8]} 8... O-O {[%clk 0:02:52.7]} 9. Be3 {[%clk 0:02:45.9]} 9... Bxe3
{[%clk 0:02:43.8]} 10. Rxe3 {[%clk 0:02:46.8]} 10... Be6 {[%clk 0:02:44]} 11.
Nbd2 {[%clk 0:02:44.8]} 11... Bxc4 {[%clk 0:02:29.2]} 12. Nxc4 {[%clk
0:02:42.7]} 12... Re8 {[%clk 0:02:30.1]} 13. Qd2 {[%clk 0:02:33.3]} 13... d5
{[%clk 0:02:23.6]} 14. exd5 {[%clk 0:02:32.2]} 14... Qxd5 {[%clk 0:02:24.5]} 15.
Ree1 {[%clk 0:02:15.5]} 15... e4 {[%clk 0:02:19.5]} 16. dxe4 {[%clk 0:02:13.1]}
16... Qxc4 {[%clk 0:02:18.9]} 0-1

[Event "*** Titled Tuesday Blitz"]
[Site "Chess.com"]
[Date "2020.10.27"]
[Round "3"]
[White "BJthechessgod"]
[Black "madmax011"]
[Result "1-0"]
[WhiteElo "2287"]
[BlackElo "1827"]
[TimeControl "180+1"]
[EndTime "10:23:43 PDT"]
[Termination "BJthechessgod won by resignation"]

1. e4 {[%clk 0:03:00.9]} 1... c5 {[%clk 0:02:58.5]} 2. Nf3 {[%clk 0:02:56.1]}
2... d6 {[%clk 0:02:58.6]} 3. c3 {[%clk 0:02:56.1]} 3... Nf6 {[%clk 0:02:57.7]}
4. Be2 {[%clk 0:02:57]} 4... Nc6 {[%clk 0:02:56.4]} 5. d4 {[%clk 0:02:56.6]}
5... cxd4 {[%clk 0:02:52.8]} 6. cxd4 {[%clk 0:02:57.5]} 6... g6 {[%clk
0:02:52.2]} 7. O-O {[%clk 0:02:47.5]} 7... Bg7 {[%clk 0:02:51.6]} 8. Nc3 {[%clk
0:02:47.5]} 8... O-O {[%clk 0:02:51]} 9. h3 {[%clk 0:02:44.8]} 9... b6 {[%clk
0:02:50.3]} 10. Be3 {[%clk 0:02:39.2]} 10... Bb7 {[%clk 0:02:50]} 11. d5 {[%clk
0:02:37.9]} 11... Nb8 {[%clk 0:02:45.2]} 12. Nd4 {[%clk 0:02:34.4]} 12... Nbd7
{[%clk 0:02:42.8]} 13. b4 {[%clk 0:02:28.3]} 13... Rc8 {[%clk 0:02:41.1]} 14.
Rc1 {[%clk 0:02:27.5]} 14... Ne5 {[%clk 0:02:35]} 15. f4 {[%clk 0:02:21.5]}
15... Nc4 {[%clk 0:02:34.5]} 16. Bxc4 {[%clk 0:02:20.5]} 16... Rxc4 {[%clk
0:02:33.5]} 17. Qb3 {[%clk 0:02:20.6]} 17... Qc8 {[%clk 0:02:23.9]} 18. Ncb5
{[%clk 0:02:15.7]} 18... Rxc1 {[%clk 0:02:19.5]} 19. Rxc1 {[%clk 0:02:16.6]}
19... Qd7 {[%clk 0:02:18.2]} 20. Rc7 {[%clk 0:02:10.4]} 20... Qd8 {[%clk
0:02:14.7]} 21. Rxb7 {[%clk 0:02:08.7]} 21... Nxe4 {[%clk 0:02:12.4]} 22. Nc6
{[%clk 0:02:09.1]} 22... Qa8 {[%clk 0:02:08.6]} 23. Rxa7 {[%clk 0:02:06.5]}
23... Qe8 {[%clk 0:02:08.6]} 24. Rxe7 {[%clk 0:02:06.3]} 24... Qc8 {[%clk
0:02:07.9]} 25. Rxe4 {[%clk 0:02:05]} 1-0

[Event "*** Titled Tuesday Blitz"]
[Site "Chess.com"]
[Date "2020.10.27"]
[Round "3"]
[White "Dr_crypt"]
[Black "Bwert2602"]
[Result "1-0"]
[WhiteElo "2459"]
[BlackElo "2210"]
[TimeControl "180+1"]
[EndTime "10:24:40 PDT"]
[Termination "Dr_crypt won by resignation"]

1. d4 {[%clk 0:02:59.4]} 1... e6 {[%clk 0:02:59.6]} 2. c4 {[%clk 0:02:59.9]}
2... Nf6 {[%clk 0:02:59.8]} 3. Nf3 {[%clk 0:03:00]} 3... c5 {[%clk 0:03:00.3]}
4. g3 {[%clk 0:02:58.2]} 4... b5 {[%clk 0:02:57.1]} 5. Bg2 {[%clk 0:02:57.4]}
5... bxc4 {[%clk 0:02:55.1]} 6. O-O {[%clk 0:02:51.9]} 6... Nc6 {[%clk
0:02:52.5]} 7. Ne5 {[%clk 0:02:45.7]} 7... cxd4 {[%clk 0:02:21.9]} 8. Nxc6
{[%clk 0:02:40.1]} 8... dxc6 {[%clk 0:02:19.4]} 9. Bxc6+ {[%clk 0:02:40.9]} 9...
Bd7 {[%clk 0:02:19.6]} 10. Bxa8 {[%clk 0:02:41.1]} 10... Qxa8 {[%clk 0:02:20.5]}
11. Qxd4 {[%clk 0:02:41.6]} 11... Be7 {[%clk 0:02:15.4]} 12. Nc3 {[%clk
0:02:30.8]} 12... O-O {[%clk 0:02:12.3]} 13. Be3 {[%clk 0:02:29.9]} 13... Qc8
{[%clk 0:01:50.9]} 14. Rfd1 {[%clk 0:02:20.2]} 14... a6 {[%clk 0:01:37.1]} 15.
Rac1 {[%clk 0:02:18.5]} 15... h6 {[%clk 0:01:20]} 16. Qa7 {[%clk 0:02:10.5]}
16... Bc6 {[%clk 0:01:05.8]} 17. Qxe7 {[%clk 0:02:09]} 1-0

[Event "*** Titled Tuesday Blitz"]
[Site "Chess.com"]
[Date "2020.10.27"]
[Round "3"]
[White "albano87"]
[Black "ailime26"]
[Result "1-0"]
[WhiteElo "2295"]
[BlackElo "1891"]
[TimeControl "180+1"]
[EndTime "10:24:45 PDT"]
[Termination "albano87 won by resignation"]

1. e4 {[%clk 0:02:59.2]} 1... b6 {[%clk 0:02:53.3]} 2. d4 {[%clk 0:02:58.3]}
2... Bb7 {[%clk 0:02:48.5]} 3. Bd3 {[%clk 0:02:59.2]} 3... g6 {[%clk 0:02:41]}
4. h4 {[%clk 0:02:58.9]} 4... h5 {[%clk 0:02:38.9]} 5. Nh3 {[%clk 0:02:58.7]}
5... Bg7 {[%clk 0:02:36.4]} 6. Be3 {[%clk 0:02:58.1]} 6... Nf6 {[%clk
0:02:36.1]} 7. Ng5 {[%clk 0:02:57.1]} 7... e6 {[%clk 0:02:13.6]} 8. f3 {[%clk
0:02:55.9]} 8... d6 {[%clk 0:01:45.6]} 9. Nc3 {[%clk 0:02:52.5]} 9... Nbd7
{[%clk 0:01:45.1]} 10. g4 {[%clk 0:02:44.4]} 10... c5 {[%clk 0:01:11.3]} 11. Qd2
{[%clk 0:02:40]} 11... Qe7 {[%clk 0:01:09.9]} 12. O-O-O {[%clk 0:02:38]} 12...
O-O-O {[%clk 0:01:09.1]} 13. Qe2 {[%clk 0:02:31.1]} 13... Kb8 {[%clk 0:01:08.1]}
14. Ba6 {[%clk 0:02:26]} 14... cxd4 {[%clk 0:01:05.3]} 15. Bxd4 {[%clk
0:02:25.9]} 15... Nc5 {[%clk 0:00:52.4]} 16. Bxb7 {[%clk 0:02:25.4]} 16... Kxb7
{[%clk 0:00:52.2]} 17. e5 {[%clk 0:02:25.8]} 17... dxe5 {[%clk 0:00:50.7]} 18.
Bxc5 {[%clk 0:02:23.5]} 18... Qxc5 {[%clk 0:00:49.3]} 19. Nxf7 {[%clk
0:02:20.6]} 19... Rhe8 {[%clk 0:00:49.4]} 20. Nxd8+ {[%clk 0:02:19.6]} 1-0

[Event "*** Titled Tuesday Blitz"]
[Site "Chess.com"]
[Date "2020.10.27"]
[Round "3"]
[White "bsnsun"]
[Black "Dii210"]
[Result "1-0"]
[WhiteElo "2438"]
[BlackElo "2105"]
[TimeControl "180+1"]
[EndTime "10:25:08 PDT"]
[Termination "bsnsun won by resignation"]

1. Nf3 {[%clk 0:03:00.9]} 1... Nf6 {[%clk 0:03:00]} 2. d4 {[%clk 0:03:01.1]}
2... g6 {[%clk 0:02:59.5]} 3. c4 {[%clk 0:03:01.3]} 3... Bg7 {[%clk 0:02:59.7]}
4. g3 {[%clk 0:03:02.2]} 4... O-O {[%clk 0:02:59.5]} 5. Bg2 {[%clk 0:03:02.5]}
5... d6 {[%clk 0:03:00.4]} 6. Nc3 {[%clk 0:03:02.2]} 6... Nc6 {[%clk 0:03:00.8]}
7. O-O {[%clk 0:03:02.7]} 7... e5 {[%clk 0:03:00.9]} 8. dxe5 {[%clk 0:02:59.5]}
8... dxe5 {[%clk 0:03:00.1]} 9. Qxd8 {[%clk 0:02:59.2]} 9... Rxd8 {[%clk
0:02:59.3]} 10. Bg5 {[%clk 0:02:59.7]} 10... Re8 {[%clk 0:02:57.5]} 11. Nb5
{[%clk 0:02:55]} 11... Re7 {[%clk 0:02:52.2]} 12. Nd2 {[%clk 0:02:52.8]} 12...
h6 {[%clk 0:02:47.3]} 13. Bxf6 {[%clk 0:02:47.3]} 13... Bxf6 {[%clk 0:02:47.3]}
14. Ne4 {[%clk 0:02:47.5]} 14... Bg7 {[%clk 0:02:47.6]} 15. Nec3 {[%clk
0:02:47.7]} 15... Be6 {[%clk 0:02:42.5]} 16. Nd5 {[%clk 0:02:26.5]} 16... Bxd5
{[%clk 0:02:42.4]} 17. cxd5 {[%clk 0:02:26.8]} 17... Nd4 {[%clk 0:02:41.3]} 18.
Nc3 {[%clk 0:02:26.8]} 18... Rd8 {[%clk 0:02:30.8]} 19. Rac1 {[%clk 0:02:23.7]}
19... Nf5 {[%clk 0:02:21.4]} 20. Rfd1 {[%clk 0:02:19.3]} 20... Nd6 {[%clk
0:02:20.7]} 21. Rc2 {[%clk 0:02:16.5]} 21... f5 {[%clk 0:02:20.5]} 22. e4 {[%clk
0:02:15.7]} 22... f4 {[%clk 0:02:18.6]} 23. Rdc1 {[%clk 0:02:07.5]} 23... fxg3
{[%clk 0:02:16.2]} 24. hxg3 {[%clk 0:02:07.2]} 24... h5 {[%clk 0:02:16.2]} 25.
Na4 {[%clk 0:02:07]} 25... Rc8 {[%clk 0:02:06.3]} 26. Nc5 {[%clk 0:01:55.1]}
26... Bh6 {[%clk 0:02:06.4]} 27. Rd1 {[%clk 0:01:53.1]} 27... Bf8 {[%clk
0:01:57.6]} 28. Ne6 {[%clk 0:01:48.9]} 28... c6 {[%clk 0:01:41]} 29. Nxf8 {[%clk
0:01:46.2]} 29... Kxf8 {[%clk 0:01:33.2]} 30. dxc6 {[%clk 0:01:46]} 1-0

[Event "*** Titled Tuesday Blitz"]
[Site "Chess.com"]
[Date "2020.10.27"]
[Round "3"]
[White "Sankalp_Gupta2003"]
[Black "Andreikka"]
[Result "0-1"]
[WhiteElo "2704"]
[BlackElo "2922"]
[TimeControl "180+1"]
[EndTime "10:25:27 PDT"]
[Termination "Andreikka won by resignation"]

1. e4 {[%clk 0:02:38.1]} 1... e5 {[%clk 0:02:57.9]} 2. Nc3 {[%clk 0:02:37.2]}
2... Nf6 {[%clk 0:02:57.3]} 3. g3 {[%clk 0:02:37.4]} 3... Bc5 {[%clk 0:02:56.2]}
4. Bg2 {[%clk 0:02:37.6]} 4... d6 {[%clk 0:02:56.7]} 5. h3 {[%clk 0:02:37.1]}
5... Nc6 {[%clk 0:02:55.1]} 6. d3 {[%clk 0:02:37.5]} 6... h6 {[%clk 0:02:48.5]}
7. Nge2 {[%clk 0:02:36.6]} 7... Nd4 {[%clk 0:02:49.2]} 8. Nxd4 {[%clk
0:02:30.8]} 8... Bxd4 {[%clk 0:02:48.9]} 9. Ne2 {[%clk 0:02:30]} 9... Bb6 {[%clk
0:02:48.8]} 10. d4 {[%clk 0:02:27.7]} 10... O-O {[%clk 0:02:45.8]} 11. O-O
{[%clk 0:02:25.1]} 11... Re8 {[%clk 0:02:44.8]} 12. Re1 {[%clk 0:02:19.9]} 12...
Bd7 {[%clk 0:02:32.6]} 13. a4 {[%clk 0:02:06.9]} 13... a5 {[%clk 0:02:28.4]} 14.
Qd3 {[%clk 0:01:58.4]} 14... Bc6 {[%clk 0:02:23.1]} 15. b3 {[%clk 0:01:57.1]}
15... d5 {[%clk 0:02:07.4]} 16. exd5 {[%clk 0:01:43.7]} 16... Nxd5 {[%clk
0:02:07.2]} 17. Bd2 {[%clk 0:01:21.2]} 17... e4 {[%clk 0:01:48.2]} 18. Bxe4
{[%clk 0:01:19.3]} 18... Nb4 {[%clk 0:01:36.3]} 19. Bh7+ {[%clk 0:01:17.9]}
19... Kh8 {[%clk 0:01:36.6]} 20. Bxb4 {[%clk 0:01:18.2]} 20... axb4 {[%clk
0:01:37.5]} 21. Nf4 {[%clk 0:01:08.9]} 21... Qxd4 {[%clk 0:01:35.7]} 22. Qxd4
{[%clk 0:00:57.7]} 22... Bxd4 {[%clk 0:01:35.2]} 23. Rxe8+ {[%clk 0:00:58.2]}
23... Rxe8 {[%clk 0:01:35.4]} 24. Rd1 {[%clk 0:00:59.1]} 24... Kxh7 {[%clk
0:01:34.8]} 0-1

[Event "*** Titled Tuesday Blitz"]
[Site "Chess.com"]
[Date "2020.10.27"]
[Round "3"]
[White "krasavetc"]
[Black "AndrewMaco"]
[Result "0-1"]
[WhiteElo "2298"]
[BlackElo "2654"]
[TimeControl "180+1"]
[EndTime "10:25:33 PDT"]
[Termination "AndrewMaco won by resignation"]

1. Nf3 {[%clk 0:02:58.4]} 1... Nf6 {[%clk 0:02:59.9]} 2. e3 {[%clk 0:02:59.3]}
2... d5 {[%clk 0:02:58.6]} 3. d4 {[%clk 0:03:00.2]} 3... c5 {[%clk 0:02:58.4]}
4. c4 {[%clk 0:03:00.8]} 4... cxd4 {[%clk 0:02:57.7]} 5. Nxd4 {[%clk 0:02:59.6]}
5... dxc4 {[%clk 0:02:54.9]} 6. Bxc4 {[%clk 0:02:58.6]} 6... e5 {[%clk
0:02:54.5]} 7. Nf3 {[%clk 0:02:58.4]} 7... Qxd1+ {[%clk 0:02:53.5]} 8. Kxd1
{[%clk 0:02:59.3]} 8... Nc6 {[%clk 0:02:49.3]} 9. Nc3 {[%clk 0:02:58.7]} 9...
Bb4 {[%clk 0:02:38.1]} 10. Bd2 {[%clk 0:02:56.1]} 10... O-O {[%clk 0:02:34.3]}
11. Ke2 {[%clk 0:02:52.6]} 11... Bg4 {[%clk 0:02:34.4]} 12. h3 {[%clk
0:02:50.8]} 12... Bh5 {[%clk 0:02:34.5]} 13. g4 {[%clk 0:02:47.7]} 13... Bg6
{[%clk 0:02:34.3]} 14. Nd5 {[%clk 0:02:46.8]} 14... Nxd5 {[%clk 0:02:29.7]} 15.
Bxd5 {[%clk 0:02:46.1]} 15... Rfd8 {[%clk 0:02:21.1]} 16. e4 {[%clk 0:02:23.1]}
16... Bxd2 {[%clk 0:02:13.8]} 17. Nxd2 {[%clk 0:02:22.7]} 17... Nd4+ {[%clk
0:02:12.9]} 18. Kf1 {[%clk 0:02:19]} 18... Rac8 {[%clk 0:02:11.6]} 19. Kg2
{[%clk 0:02:17.9]} 19... Rc2 {[%clk 0:02:08.5]} 20. Nc4 {[%clk 0:02:17]} 20...
Rxd5 {[%clk 0:01:59.6]} 21. exd5 {[%clk 0:02:08]} 21... Be4+ {[%clk 0:01:59.4]}
22. Kg3 {[%clk 0:02:04.9]} 22... Bxh1 {[%clk 0:01:45.7]} 23. Ne3 {[%clk
0:01:55.5]} 23... Be4 {[%clk 0:01:29.5]} 24. Nxc2 {[%clk 0:01:52.2]} 24... Bxc2
{[%clk 0:01:29.7]} 25. d6 {[%clk 0:01:35.4]} 25... Kf8 {[%clk 0:01:29.7]} 26.
Re1 {[%clk 0:01:31]} 26... f6 {[%clk 0:01:26.9]} 27. f4 {[%clk 0:01:29.8]} 27...
e4 {[%clk 0:01:25.7]} 28. Kf2 {[%clk 0:01:26.4]} 28... Bd3 {[%clk 0:01:20.6]}
29. Rc1 {[%clk 0:01:22]} 29... Nc2 {[%clk 0:01:20.8]} 0-1

[Event "*** Titled Tuesday Blitz"]
[Site "Chess.com"]
[Date "2020.10.27"]
[Round "3"]
[White "GigaQuparadze"]
[Black "Fy_Rakotomaharo"]
[Result "1-0"]
[WhiteElo "2838"]
[BlackElo "2645"]
[TimeControl "180+1"]
[EndTime "10:25:42 PDT"]
[Termination "GigaQuparadze won by resignation"]

1. e4 {[%clk 0:03:00.9]} 1... c5 {[%clk 0:02:59.3]} 2. Ne2 {[%clk 0:02:59.9]}
2... d6 {[%clk 0:02:56.9]} 3. g3 {[%clk 0:02:59.5]} 3... g6 {[%clk 0:02:56.5]}
4. Bg2 {[%clk 0:02:59.8]} 4... Bg7 {[%clk 0:02:57.2]} 5. c3 {[%clk 0:03:00.2]}
5... e5 {[%clk 0:02:54.8]} 6. d4 {[%clk 0:03:00]} 6... Ne7 {[%clk 0:02:41.8]} 7.
dxc5 {[%clk 0:02:59.3]} 7... dxc5 {[%clk 0:02:42.1]} 8. Qxd8+ {[%clk 0:02:59.2]}
8... Kxd8 {[%clk 0:02:43]} 9. Be3 {[%clk 0:02:59.1]} 9... b6 {[%clk 0:02:42.8]}
10. Na3 {[%clk 0:02:59.2]} 10... Ba6 {[%clk 0:02:39]} 11. f4 {[%clk 0:02:56.6]}
11... Nbc6 {[%clk 0:02:31.9]} 12. Rf1 {[%clk 0:02:55.2]} 12... Kc7 {[%clk
0:02:20.9]} 13. f5 {[%clk 0:02:55]} 13... f6 {[%clk 0:02:21.2]} 14. g4 {[%clk
0:02:54.8]} 14... g5 {[%clk 0:02:15.9]} 15. h4 {[%clk 0:02:53.6]} 15... h6
{[%clk 0:02:08.4]} 16. Rh1 {[%clk 0:02:53.5]} 16... Rad8 {[%clk 0:01:59.2]} 17.
Ng3 {[%clk 0:02:53.1]} 17... Na5 {[%clk 0:01:32.3]} 18. Nh5 {[%clk 0:02:51]}
18... Rhg8 {[%clk 0:01:32.4]} 19. hxg5 {[%clk 0:02:47.6]} 19... hxg5 {[%clk
0:01:32.4]} 20. Bf1 {[%clk 0:02:46.6]} 20... Bb7 {[%clk 0:01:29.3]} 21. Bg2
{[%clk 0:02:36.7]} 21... Ba6 {[%clk 0:01:29.3]} 22. Kf2 {[%clk 0:02:35.8]} 22...
Nc4 {[%clk 0:01:29.5]} 23. Nxc4 {[%clk 0:02:35.2]} 23... Bxc4 {[%clk 0:01:30.4]}
24. b3 {[%clk 0:02:35.8]} 24... Bf7 {[%clk 0:01:30.3]} 25. Nxg7 {[%clk
0:02:23.3]} 25... Rxg7 {[%clk 0:01:31.2]} 26. Bf3 {[%clk 0:02:23.5]} 26... c4
{[%clk 0:01:23.7]} 27. b4 {[%clk 0:02:22.5]} 27... Rd3 {[%clk 0:01:23.3]} 28.
Rac1 {[%clk 0:02:21.9]} 28... Rd6 {[%clk 0:01:03]} 29. a4 {[%clk 0:02:20.6]}
29... Nc6 {[%clk 0:00:58.6]} 30. Be2 {[%clk 0:02:20.2]} 30... Rd7 {[%clk
0:00:43.1]} 31. Rh6 {[%clk 0:02:18.3]} 31... Rd6 {[%clk 0:00:41.3]} 32. Rch1
{[%clk 0:02:17.5]} 32... Ne7 {[%clk 0:00:29.9]} 33. Rh7 {[%clk 0:02:16.6]} 1-0